bitfinex/quotes_ETHUSD_20250808
["timestamp","ask_amount","ask_price","bid_price","bid_amount"]
[1754676254661,1.7444,4049.0,4048.8,1e-08]
[1754676254960,1.07392963,4049.4,4048.8,1e-08]
[1754676254961,8.26920661,4048.9,4048.8,1e-08]
[1754676255126,8.27020661,4048.9,4048.8,1e-08]
[1754676255323,0.4287,4048.9,4048.8,1e-08]
[1754676255523,1.7444,4049.3,4048.8,1e-08]
[1754676255959,1.7444,4049.8,4048.8,1e-08]
[1754676256159,2.46931871,4049.7,4048.9,2.46980591]
[1754676256466,4.054,4049.6,4049.0,2.46973073]
[1754676257041,4.054,4049.6,4049.1,2.46968324]
[1754676257238,0.4287,4049.5,4048.9,2.46980661]
[1754676257496,0.4287,4049.5,4048.8,2.46981937]
[1754676257772,0.4287,4049.5,4048.8,1e-08]
[1754676257973,0.4287,4049.5,4049.0,2.46968701]
[1754676258154,0.4287,4049.5,4048.8,1e-08]
[1754676258350,0.4287,4049.5,4049.1,2.46967471]
[1754676258551,4.4787,4049.5,4049.2,2.46961613]
[1754676258756,4.05,4049.5,4049.1,2.4696685]
[1754676259155,0.002,4050.0,4049.4,2.46948004]
[1754676259478,0.002,4050.0,4049.9,2.46919677]
[1754676260977,0.002,4050.0,4048.8,12.51961025]
[1754676260978,1.7464,4050.0,4048.8,1e-08]
[1754676261215,0.002,4050.0,4049.9,2.46919677]
[1754676261692,0.002,4050.0,4049.8,2.46924384]
[1754676261870,0.002,4050.0,4049.1,3.1295]
[1754676262074,0.002,4050.0,4049.9,2.59239677]
[1754676262477,0.002,4050.0,4049.9,5.72189677]
[1754676262975,1e-08,4050.0,4049.9,9.63839677]
[1754676263177,1e-08,4050.0,4049.9,9.76789677]
[1754676263646,1e-08,4050.0,4049.9,9.63839677]
[1754676265390,1e-08,4050.0,4049.9,9.51519677]
[1754676265606,1e-08,4050.0,4049.9,9.97749677]
[1754676266108,1e-08,4050.0,4049.9,9.76789677]
[1754676266475,1e-08,4050.0,4049.9,9.63839677]
[1754676268196,1e-08,4050.0,4049.9,6.63839677]
[1754676268393,1e-08,4050.0,4049.9,2.59239677]
[1754676269088,1.75830001,4050.0,4049.9,2.59239677]
[1754676269273,1.75830001,4050.0,4049.9,2.46919677]
[1754676270907,1.94665001,4050.0,4049.6,2.46934062]
[1754676271086,0.1232,4049.9,4049.0,4.028]
[1754676271290,1.8815,4049.9,4049.4,2.46950097]
[1754676271496,1.8815,4049.9,4049.3,0.1232]
[1754676271497,1.7583,4049.8,4049.5,2.46943202]
[1754676271699,1.7583,4049.7,4049.5,2.46939619]
[1754676272004,1.7583,4049.6,4049.5,2.46944067]
[1754676272409,0.1232,4049.9,4049.4,2.46950165]
[1754676272610,1e-08,4050.0,4049.9,2.46919677]
[1754676273132,1e-08,4050.0,4049.9,5.46919677]
[1754676273814,1e-08,4050.0,4049.9,9.49719677]
[1754676273991,1e-08,4050.0,4049.9,5.59239677]
[1754676275131,1e-08,4050.0,4048.7,2.46986843]
[1754676275132,1.75830001,4050.0,4049.6,0.1232]
[1754676275332,1.94645,4049.9,4049.8,2.46925774]
[1754676275636,1.94645,4049.9,4049.6,0.1232]
[1754676275798,2.78055535,4049.9,4049.3,0.1232]
[1754676275982,1.7583,4049.8,4049.2,2.46959985]
[1754676276181,0.1232,4049.4,4049.3,2.46956264]
[1754676276423,1.8815,4049.4,4049.2,2.46960575]
[1754676276584,1.4276,4049.4,4049.2,2.46960575]
[1754676276788,1.8815,4049.4,4049.3,2.46956264]
[1754676277638,0.1232,4049.4,4049.3,2.46956264]
[1754676277801,0.18815,4049.9,4049.4,2.46948995]
[1754676277802,0.1232,4049.9,4049.4,2.46948995]
[1754676278000,2.58871939,4049.9,4049.3,0.1232]
[1754676278199,1e-08,4050.0,4049.8,2.46925774]
[1754676278593,1.7583,4049.9,4049.7,2.46930106]
[1754676278792,1e-08,4050.0,4049.8,2.46925774]
[1754676279012,1.3044,4049.9,4049.7,2.4693111]
[1754676279222,1.3044,4049.8,4049.7,2.4693111]
[1754676279396,1.7583,4049.8,4049.7,2.4693111]
[1754676279600,1e-08,4050.0,4049.9,2.46919677]
[1754676279930,1.30440001,4050.0,4049.9,2.46919677]
[1754676280811,1.75830001,4050.0,4049.8,2.46924321]
[1754676281003,1.6583,4049.9,4049.7,2.46927493]
[1754676281204,1.3044,4049.8,4049.7,2.46927493]
[1754676281522,1.3044,4049.8,4049.6,2.59256207]
[1754676281723,1.3044,4049.8,4049.6,0.1232]
[1754676281910,1.3044,4049.8,4049.7,2.46931871]
[1754676283229,1.7583,4049.8,4049.6,0.1232]
[1754676283404,1.7583,4049.7,4049.2,2.46959484]
[1754676283607,1.7583,4049.6,4049.5,2.46942381]
[1754676283914,1e-08,4050.0,4049.5,0.1232]
[1754676284093,1.7583,4049.9,4049.4,2.46945683]
[1754676284423,1e-08,4050.0,4049.7,0.1232]
[1754676284625,1.7583,4049.8,4049.3,0.1232]
[1754676284834,1.7583,4049.8,4049.7,2.46931871]
[1754676285793,1.7583,4049.8,4049.3,0.1232]
[1754676285997,1.7583,4049.7,4049.6,2.46937906]
[1754676286337,1e-08,4050.0,4049.9,2.46919677]
[1754676288437,1e-08,4050.0,4049.7,0.1232]
[1754676288438,1.75830001,4050.0,4049.7,0.1232]
[1754676288635,0.18815,4049.9,4049.7,0.1232]
[1754676288835,1.7583,4049.8,4049.1,2.46968462]
[1754676289042,1.7583,4049.8,4049.0,0.001]
[1754676289043,1.8815,4049.8,4049.2,0.1232]
[1754676289199,1.8815,4049.8,4049.3,2.46951681]
[1754676289396,1.8815,4049.8,4049.2,0.1232]
[1754676289397,0.71245,4049.8,4049.2,0.1232]
[1754676289598,1.7583,4049.7,4049.2,0.1232]
[1754676289800,0.71245,4049.8,4049.0,0.001]
[1754676289801,1.7583,4049.6,4049.0,0.001]
[1754676290112,0.1232,4049.1,4049.0,0.001]
[1754676290643,0.1232,4049.4,4049.0,0.001]
[1754676290994,1.8815,4049.4,4049.0,2.47074036]
[1754676291258,1.7583,4049.3,4049.0,0.001]
[1754676291436,0.1232,4049.4,4049.2,2.46957049]
[1754676291599,0.1232,4049.4,4049.0,0.001]
[1754676291798,1.8815,4049.4,4049.0,0.001]
[1754676292016,1.7583,4049.3,4049.0,0.001]
[1754676292629,1.7583,4049.2,4049.0,0.001]
[1754676292931,0.1232,4049.1,4049.0,0.001]
[1754676293132,1.8815,4049.1,4049.0,0.001]
[1754676293627,4.35118462,4049.1,4049.0,0.001]
[1754676293832,5.05206866,4049.1,4049.0,0.001]
[1754676294531,2.58238404,4049.1,4049.0,0.001]
[1754676294742,4.35118462,4049.1,4049.0,0.001]
[1754676294892,8.35818462,4049.1,4049.0,0.001]
[1754676295104,4.35118462,4049.1,4049.0,0.001]
[1754676295301,8.35818462,4049.1,4049.0,0.001]
[1754676296543,8.90818462,4049.1,4049.0,0.001]
[1754676296839,10.06477517,4049.1,4049.0,0.001]
[1754676297043,13.06477517,4049.1,4049.0,0.001]
[1754676297206,13.59580006,4049.1,4049.0,1e-08]
[1754676297404,17.59580006,4049.1,4049.0,1e-08]
[1754676297915,3.02023368,4048.2,4048.1,0.001]
[1754676298114,3.02023368,4048.2,4045.3,4.175]
[1754676298115,3.02035573,4048.0,4047.9,1e-08]
[1754676298347,3.02035573,4048.0,4045.6,2.47181593]
[1754676298348,3.02072194,4047.4,4045.6,2.47181593]
[1754676298647,3.02084404,4047.2,4045.3,0.001]
[1754676299149,3.0210272,4046.9,4045.3,0.001]
[1754676299445,3.02127146,4046.5,4045.3,0.001]
[1754676299812,4.81247146,4046.5,4046.4,1e-08]
[1754676300009,6.02151578,4046.1,4046.0,1e-08]
[1754676300213,6.02151578,4046.1,4045.3,0.001]
[1754676300214,3.02188233,4045.5,4045.3,0.001]
[1754676300408,3.02188233,4045.5,4044.9,0.001]
[1754676300409,6.02200454,4045.3,4044.9,1e-08]
[1754676300607,6.02200454,4045.3,4044.4,0.001]
[1754676300608,3.0224935,4044.5,4044.4,0.001]
[1754676300836,0.124,4044.5,4044.4,0.001]
[1754676301208,4.144,4044.5,4044.4,0.001]
[1754676301831,8.4076935,4044.5,4044.4,0.001]
[1754676302033,9.4957032,4044.5,4044.4,0.001]
[1754676302343,9.9217032,4044.5,4044.4,0.001]
[1754676302965,5.1070097,4044.5,4044.4,0.001]
[1754676303175,8.2826935,4044.5,4044.4,0.001]
[1754676303853,5.8102,4044.5,4044.4,0.001]
[1754676304165,8.2826935,4044.5,4044.4,0.001]
[1754676304464,8.8326935,4044.5,4044.4,0.001]
[1754676304663,1.7912,4044.5,4044.4,0.001]
[1754676304831,5.8112,4044.5,4044.4,0.001]
[1754676305933,4.02,4044.5,4044.4,0.001]
[1754676306749,5.8112,4044.5,4044.4,0.001]
[1754676306936,8.93293538,4044.5,4044.4,0.001]
[1754676307135,6.46044188,4044.5,4044.4,0.001]
[1754676307366,8.93293538,4044.5,4044.4,0.001]
[1754676307757,0.64924188,4044.5,4044.4,0.001]
[1754676307949,4.016,4044.5,4044.4,0.001]
[1754676308351,1.7912,4045.1,4044.4,0.001]
[1754676308560,4.019,4045.0,4044.4,0.001]
[1754676308866,4.018,4044.9,4044.4,0.001]
[1754676309044,5.8092,4044.9,4044.4,0.001]
[1754676309253,0.58092,4044.8,4044.4,0.001]
[1754676309641,4.0,4045.2,4044.4,0.001]
[1754676309861,4.0,4045.2,4044.5,0.2315]
[1754676310104,4.017,4045.3,4044.6,0.1223]
[1754676310388,4.017,4045.3,4045.2,2.47206565]
[1754676310389,4.022,4045.3,4045.2,2.47206565]
[1754676310587,4.022,4045.3,4044.4,0.001]
[1754676310799,6.26186,4045.3,4044.4,0.001]
[1754676311099,0.55,4045.1,4044.4,0.001]
[1754676311307,2.47243125,4044.7,4044.4,0.001]
[1754676311473,4.022,4044.6,4044.4,0.001]
[1754676311803,4.022,4044.5,4044.4,0.001]
[1754676312455,0.124,4044.9,4044.5,2.47244352]
[1754676312790,0.124,4044.9,4044.5,2.4724935]
[1754676312986,0.124,4044.9,4044.8,2.47231012]
[1754676313189,4.02,4044.9,4044.4,0.001]
[1754676313376,4.66920688,4044.9,4044.4,0.001]
[1754676313577,1.7912,4044.8,4044.4,0.001]
[1754676313759,2.5964935,4044.5,4044.4,0.001]
[1754676313974,6.6174935,4044.5,4044.4,0.001]
[1754676314206,8.9586935,4044.5,4044.4,0.001]
[1754676314419,7.76059998,4044.5,4044.4,0.001]
[1754676315234,7.75959998,4044.5,4044.4,0.001]
[1754676315408,10.09979998,4044.5,4044.4,0.001]
[1754676317313,10.09979998,4044.5,4044.3,0.001]
[1754676317314,3.02255464,4044.4,4044.3,1e-08]
[1754676317517,8.33903558,4044.4,4044.3,1e-08]
[1754676317716,10.19603697,4044.4,4044.3,1e-08]
[1754676318083,14.19603697,4044.4,4044.3,1e-08]
[1754676318417,15.08728986,4044.4,4044.3,1e-08]
[1754676318619,14.19603697,4044.4,4044.3,1e-08]
[1754676318989,14.19603697,4044.4,4043.1,1e-08]
[1754676318990,3.02328848,4043.2,4043.1,1e-08]
[1754676319190,16.52793795,4043.2,4043.1,1e-08]
[1754676319418,18.84441889,4043.2,4043.1,1e-08]
[1754676319718,0.55,4042.1,4039.7,0.2315]
[1754676319888,3.0,4043.1,4039.8,0.2315]
[1754676319889,0.55,4041.9,4039.8,0.2315]
[1754676320089,2.47488032,4040.6,4039.8,2.70686674]
[1754676320299,4.021,4040.5,4039.4,0.2315]
[1754676320484,4.022,4040.4,4040.2,2.4750885]
[1754676320684,4.022,4040.3,4040.2,0.2315]
[1754676320886,4.022,4040.3,4039.7,0.2315]
[1754676321287,1.7912,4041.4,4039.8,0.2315]
[1754676321504,0.55,4041.2,4039.8,0.2315]
[1754676321722,0.55,4041.2,4039.2,10.04977742]
[1754676321723,2.47490913,4040.6,4039.5,3.0]
[1754676321931,4.031,4040.5,4039.8,2.4753096]
[1754676322219,0.52737632,4041.1,4039.9,0.2315]
[1754676322422,0.95743874,4041.6,4039.9,0.2315]
[1754676322423,0.29987625,4041.6,4039.9,3.2315]
[1754676322619,4.36259621,4041.5,4040.1,2.47518625]
[1754676322822,4.7912,4041.4,4039.0,0.2315]
[1754676322988,0.65756249,4041.1,4039.0,0.2315]
[1754676323187,2.47510545,4040.3,4039.1,2.42579906]
[1754676323427,0.52732338,4040.7,4039.7,2.47542219]
[1754676323587,0.65756249,4040.9,4039.7,0.2315]
[1754676323588,0.52732338,4040.9,4039.7,0.2315]
[1754676323788,4.039,4041.1,4040.0,3.0]
[1754676324032,4.039,4041.1,4040.1,0.2315]
[1754676324320,6.51358029,4041.1,4040.2,3.0]
[1754676324492,4.039,4041.1,4040.2,2.47507631]
[1754676324687,4.4429,4041.1,4040.1,0.2315]
[1754676324911,4.4429,4041.1,4040.8,2.47474514]
[1754676325221,0.5284478,4041.4,4040.7,5.47481871]
[1754676325400,0.5284478,4041.6,4041.3,10.04977742]
[1754676325597,0.52850595,4042.0,4041.3,10.04977742]
[1754676325906,1.05122796,4041.9,4041.3,10.04977742]
[1754676326108,0.52852112,4041.8,4041.3,10.04977742]
[1754676326298,0.52852112,4041.7,4041.3,10.04977742]
[1754676326619,4.57003519,4041.6,4040.8,3.0]
[1754676326810,4.041,4041.6,4040.8,3.0]
[1754676327006,4.041,4041.6,4041.2,2.47448912]
[1754676327223,4.038,4041.7,4041.3,12.75571964]
[1754676327425,4.038,4041.8,4041.5,2.47432883]
[1754676327642,0.52955085,4041.7,4041.3,10.04977742]
[1754676327922,4.038,4042.0,4041.8,2.47414266]
[1754676328137,0.87674999,4042.6,4041.3,10.04977742]
[1754676328138,0.52953168,4041.9,4041.3,10.04977742]
[1754676328323,0.124,4042.1,4041.7,2.47420639]
[1754676328488,0.52999034,4042.0,4041.5,0.124]
[1754676328684,0.52999034,4041.9,4041.5,0.124]
[1754676328950,0.52999034,4041.8,4041.4,2.47438183]
[1754676329151,2.25859034,4041.7,4041.3,0.124]
[1754676329353,0.46959903,4041.8,4040.2,10.04977742]
[1754676329354,2.4744639,4041.3,4040.5,2.59889448]
[1754676329554,0.124,4041.0,4040.5,0.124]
[1754676329850,4.57499034,4040.9,4040.5,0.124]
[1754676330024,3.00476561,4040.8,4040.5,0.124]
[1754676330222,0.52999034,4040.7,4040.5,0.124]
[1754676330523,4.045,4040.9,4040.5,0.124]
[1754676330716,0.52982603,4040.8,4040.5,0.124]
[1754676330922,4.045,4040.9,4040.5,0.124]
[1754676331149,0.52973215,4040.8,4040.5,0.124]
[1754676331350,0.71733844,4040.8,4040.3,10.04977742]
[1754676331523,0.124,4040.5,4039.9,0.124]
[1754676331848,2.47506373,4040.3,4039.9,0.124]
[1754676332026,0.52950392,4040.2,4039.9,0.124]
[1754676332225,2.47506522,4040.3,4039.9,0.124]
[1754676332422,0.52899956,4040.2,4039.7,0.001]
[1754676332622,0.124,4039.9,4039.7,0.001]
[1754676333455,4.042,4039.8,4039.7,0.001]
[1754676333961,8.24597006,4039.8,4039.7,0.001]
[1754676334166,8.24597006,4039.8,4038.5,2.34927063]
[1754676334366,8.24597006,4039.8,4038.9,0.124]
[1754676334367,0.124,4039.5,4038.9,0.124]
[1754676334666,0.124,4039.5,4038.5,10.04977742]
[1754676334667,0.124,4040.4,4039.7,0.124]
[1754676334850,0.124,4040.4,4039.6,2.47548177]
[1754676335062,2.59900896,4040.4,4039.9,0.124]
[1754676335360,2.47487168,4040.7,4039.9,12.52506147]
[1754676335563,0.124,4040.4,4039.9,10.04977742]
[1754676335753,0.124,4040.4,4040.1,2.47516303]
[1754676335951,0.124,4040.4,4040.3,2.47506373]
[1754676336142,0.52794366,4040.9,4040.3,0.124]
[1754676336143,4.045,4040.7,4040.3,0.124]
[1754676336347,4.045,4040.7,4040.3,2.59903475]
[1754676336547,4.045,4040.7,4040.3,0.124]
[1754676336948,0.65756249,4041.7,4040.8,2.47475747]
[1754676337171,0.65181235,4041.6,4041.3,10.04977742]
[1754676337371,0.124,4041.6,4041.3,10.04977742]
[1754676337575,0.87674999,4042.4,4041.3,10.04977742]
[1754676337576,0.52783874,4042.0,4041.9,2.47408397]
[1754676337773,0.87674999,4042.8,4041.9,2.47408397]
[1754676337774,0.124,4042.6,4042.1,10.04977742]
[1754676337978,0.52771456,4043.0,4042.2,3.0]
[1754676338152,0.65756249,4043.7,4043.2,2.47324402]
[1754676338473,4.044,4043.9,4043.4,12.5229396]
[1754676338676,5.10806847,4043.9,4043.4,10.17377742]
[1754676338880,4.044,4043.9,4043.4,10.17377742]
[1754676339043,4.044,4043.9,4043.4,0.124]
[1754676339244,3.72897652,4043.9,4043.4,0.124]
[1754676339578,1.2561,4044.4,4043.4,2.47310544]
[1754676339778,0.124,4043.7,4043.1,3.124]
[1754676339969,0.124,4043.7,4043.2,2.47328848]
[1754676340282,0.124,4043.7,4043.1,0.124]
[1754676340486,0.52809291,4044.8,4043.4,2.47316614]
[1754676340651,4.047,4045.3,4044.8,2.47231012]
[1754676341178,4.047,4045.3,4044.6,2.47237139]
[1754676341366,4.047,4045.3,4043.8,3.0]
[1754676341544,1.2581,4044.9,4044.2,2.47266919]
[1754676341750,4.17081,4044.8,4044.2,2.47266919]
[1754676342278,4.17081,4044.8,4044.2,2.47267016]
[1754676342679,4.17081,4044.8,4043.9,3.0]
[1754676342984,6.64314949,4044.8,4044.0,2.47279042]
[1754676343187,0.79012495,4044.7,4044.1,2.47272926]
[1754676343384,3.26251348,4044.7,4043.9,2.47280321]
[1754676343553,2.47243911,4044.6,4043.9,2.47280321]
[1754676343750,2.47273017,4044.2,4043.1,2.47334286]
[1754676343992,2.47273924,4044.1,4043.3,2.47319811]
[1754676344190,2.47274696,4044.1,4043.3,2.47322345]
[1754676344398,2.47273081,4044.2,4043.3,2.47317173]
[1754676344593,0.89832916,4044.2,4042.2,2.47386019]
[1754676344796,2.4728065,4044.0,4042.7,2.47357095]
[1754676344996,0.4725,4044.0,4042.4,4.038]
[1754676345201,2.47315697,4043.5,4042.6,2.47364428]
[1754676345407,4.038,4043.7,4042.8,12.52330939]
[1754676345603,4.038,4043.7,4042.9,3.0]
[1754676345782,2.87685776,4043.6,4042.9,3.0]
[1754676346106,0.4038,4043.6,4042.8,10.04977742]
[1754676346309,0.4038,4043.6,4042.9,3.0]
[1754676346497,0.4038,4043.6,4043.0,2.47341083]
[1754676346900,4.036,4043.7,4042.9,3.0]
[1754676347098,4.036,4043.7,4043.0,2.47341083]
[1754676347298,6.50901563,4043.7,4042.9,5.47346288]
[1754676347510,6.50901563,4043.7,4043.0,2.47340964]
[1754676347810,4.036,4043.7,4042.9,3.0]
[1754676347988,4.85975772,4043.7,4042.9,3.0]
[1754676348383,4.85975772,4043.7,4042.6,3.0]
[1754676348582,4.85975772,4043.7,4042.9,2.47346232]
[1754676348903,2.47304744,4043.6,4042.8,2.47352693]
[1754676349102,3.33191984,4043.6,4042.8,2.47352693]
[1754676349302,3.33191984,4043.6,4042.7,5.47358611]
[1754676349303,2.47311724,4043.5,4042.7,5.47358611]
[1754676349515,2.47311724,4043.5,4042.7,2.47358611]
[1754676349719,2.47318809,4043.4,4042.7,2.47358611]
[1754676349902,2.47311064,4043.5,4042.8,2.47351877]
[1754676350080,1.06646632,4043.5,4043.0,2.47340789]
[1754676350282,1.06646632,4043.5,4042.6,3.0]
[1754676350598,5.943,4044.9,4043.1,0.124]
[1754676350599,2.4730501,4043.6,4043.1,0.124]
[1754676350801,2.47304795,4043.6,4043.1,0.124]
[1754676351010,0.124,4043.7,4043.1,0.124]
[1754676351524,0.124,4043.7,4043.1,5.59734801]
[1754676351727,0.83384326,4043.7,4043.1,0.124]
[1754676352324,2.47317196,4043.4,4043.1,0.124]
[1754676352526,2.47306652,4043.6,4043.1,0.124]
[1754676352739,1.7286,4043.6,4043.1,0.124]
[1754676352929,0.65914433,4043.5,4042.8,2.47348448]
[1754676353095,0.65914433,4043.5,4042.9,3.0]
[1754676353435,0.65914433,4043.5,4043.1,0.124]
[1754676354024,0.124,4043.6,4043.1,0.124]
[1754676354230,0.124,4043.6,4043.1,2.59733244]
[1754676354425,2.47274688,4044.1,4043.2,3.0]
[1754676354637,4.031,4044.0,4043.5,2.59710432]
[1754676354840,0.124,4044.1,4043.5,0.124]
[1754676355139,4.03,4044.4,4043.9,0.124]
[1754676355294,0.65024753,4044.3,4043.9,0.124]
[1754676355490,0.65024753,4044.3,4044.0,2.4727992]
[1754676355714,0.65024753,4044.3,4043.9,2.59684946]
[1754676355913,0.65024753,4044.3,4043.9,0.124]
[1754676356119,2.12032495,4044.7,4044.1,2.47268328]
[1754676356120,0.79012495,4044.7,4044.1,2.47268328]
[1754676356327,0.79012495,4044.7,4044.2,0.124]
[1754676356491,4.81812495,4044.7,4044.1,3.0]
[1754676356698,4.81812495,4044.7,4044.6,0.124]
[1754676357693,4.82012495,4044.7,4044.6,0.124]
[1754676358096,6.62352495,4044.7,4044.3,0.124]
[1754676358330,0.90978533,4044.6,4044.4,2.47255276]
[1754676358898,0.90978533,4044.6,4044.3,2.59660437]
[1754676359130,0.90978533,4044.6,4044.4,2.47252593]
[1754676359335,0.002,4044.9,4044.6,2.47240468]
[1754676359569,0.002,4044.9,4044.5,0.124]
[1754676359570,4.024,4044.8,4044.5,0.124]
[1754676359781,4.024,4044.8,4044.6,5.47242282]
[1754676359941,4.4972,4044.8,4044.6,3.0]
[1754676360146,5.8274,4044.8,4044.6,3.0]
[1754676360367,5.8274,4044.8,4043.6,2.70452204]
[1754676360368,2.63376052,4044.7,4044.2,2.47261824]
[1754676360538,2.63376052,4044.7,4044.3,3.0]
[1754676360946,0.83036052,4044.7,4044.3,3.0]
[1754676361257,4.024,4044.8,4044.6,0.124]
[1754676362641,0.002,4044.9,4044.7,2.47237125]
[1754676362856,0.002,4044.9,4044.6,0.124]
[1754676362857,4.023,4044.8,4044.6,0.124]
[1754676363056,0.002,4044.9,4044.6,0.124]
[1754676363258,4.019,4044.8,4044.6,0.124]
[1754676363558,4.019,4044.8,4043.2,3.2472]
[1754676363559,2.47243237,4044.6,4043.2,3.2472]
[1754676363766,0.124,4044.4,4043.9,0.124]
[1754676363949,0.124,4044.4,4043.2,3.0]
[1754676363950,2.47272065,4044.2,4043.4,2.47314659]
[1754676364156,3.67352335,4044.1,4043.5,3.124]
[1754676364351,0.002,4044.6,4044.1,3.124]
[1754676364783,0.002,4044.6,4044.4,0.124]
[1754676364983,0.002,4044.6,4044.5,2.4724935]
[1754676365152,0.002,4044.6,4044.4,2.59653711]
[1754676365354,0.002,4044.6,4044.5,5.4724935]
[1754676365555,0.002,4044.6,4043.4,2.47310864]
[1754676365756,0.002,4044.6,4044.5,2.4724935]
[1754676365955,0.002,4044.6,4044.5,5.5964935]
[1754676367391,0.002,4044.6,4043.7,2.47296656]
[1754676367392,1.8054,4044.6,4043.3,4.018]
[1754676367592,0.58254,4044.5,4043.4,3.0]
[1754676367901,0.002,4044.6,4044.5,2.5964935]
[1754676369393,0.002,4044.6,4044.5,0.124]
[1754676369590,0.002,4044.6,4044.5,5.5964935]
[1754676370162,0.002,4044.9,4044.8,2.47231012]
[1754676370600,0.002,4044.9,4044.8,5.93191012]
[1754676370787,0.002,4044.9,4044.8,9.85481012]
[1754676371178,0.002,4044.9,4044.8,5.59631012]
[1754676371498,0.002,4044.9,4044.8,9.62331012]
[1754676371688,0.002,4044.9,4044.8,3.124]
[1754676371901,0.18274,4044.9,4044.8,3.124]
[1754676372273,0.002,4044.9,4044.8,3.124]
[1754676372698,0.002,4044.9,4044.8,5.59631012]
[1754676374203,0.002,4044.9,4044.8,9.62731012]
[1754676375572,0.002,4044.9,4044.8,7.153]
[1754676375906,0.002,4044.9,4044.8,9.62531012]
[1754676376515,0.002,4044.9,4044.8,9.50131012]
[1754676376877,0.002,4044.9,4044.8,9.73281012]
[1754676377101,0.002,4044.9,4044.8,9.50131012]
[1754676377416,0.002,4044.9,4044.8,5.47231012]
[1754676377708,0.002,4044.9,4044.8,9.49631012]
[1754676378518,0.002,4044.9,4044.8,9.49531012]
[1754676378892,0.002,4044.9,4044.8,5.47231012]
[1754676379096,0.002,4044.9,4044.8,9.49531012]
[1754676380214,0.002,4044.9,4044.8,9.72681012]
[1754676381559,0.002,4044.9,4044.8,14.03681012]
[1754676381735,0.002,4044.9,4044.8,13.80531012]
[1754676381910,0.002,4045.4,4045.3,2.47200454]
[1754676382111,0.002,4045.7,4045.6,2.47182123]
[1754676382337,0.002,4045.7,4045.6,9.49282123]
[1754676382629,1e-08,4045.7,4045.6,10.27432123]
[1754676383032,0.002,4046.1,4046.0,15.52135428]
[1754676383209,0.002,4046.1,4046.0,19.53935428]
[1754676383828,0.002,4046.1,4046.0,15.52135428]
[1754676384400,0.002,4046.1,4046.0,19.53835428]
[1754676384607,0.002,4046.1,4046.0,9.48857686]
[1754676385415,0.002,4046.1,4046.0,5.47157686]
[1754676385734,0.002,4046.1,4046.0,9.48857686]
[1754676386509,0.002,4046.1,4046.0,9.61177686]
[1754676387743,0.002,4046.1,4046.0,10.16177686]
[1754676388941,0.002,4047.0,4046.9,2.4710272]
[1754676389240,1.2912,4047.5,4046.9,2.4710272]
[1754676389241,1.2758,4047.5,4047.4,2.47072194]
[1754676389413,1.2758,4047.5,4047.3,4.006]
[1754676389613,0.1232,4048.1,4047.4,0.1232]
[1754676389916,6.59356249,4049.0,4047.3,3.0]
[1754676389917,2.47052927,4047.8,4047.3,3.0]
[1754676390122,0.1232,4048.1,4047.5,0.1232]
[1754676390324,2.47003746,4048.6,4047.7,2.47052166]
[1754676390518,2.46994567,4048.7,4047.7,6.47652166]
[1754676390740,5.936,4049.0,4047.8,3.0]
[1754676391046,2.46986761,4048.8,4048.1,2.47029314]
[1754676391214,2.46986761,4048.8,4047.9,4.008]
[1754676391215,1.7468,4048.7,4047.9,4.008]
[1754676391415,4.21676363,4048.7,4048.0,2.47033923]
[1754676391644,3.46400823,4048.9,4047.9,4.008]
[1754676391645,1.7468,4048.6,4047.9,4.008]
[1754676391821,2.47015974,4048.4,4047.8,4.006]
[1754676392021,1.2912,4048.3,4047.8,9.47647677]
[1754676392223,1.2912,4048.3,4048.0,2.47035287]
[1754676392545,0.4556,4048.8,4048.1,4.006]
[1754676392713,0.4556,4048.8,4048.3,2.47011659]
[1754676393041,1.2912,4048.7,4048.0,4.004]
[1754676393244,0.4556,4048.6,4048.1,3.0]
[1754676393419,0.4556,4048.6,4047.8,5.47047116]
[1754676393622,0.4556,4048.6,4048.0,3.0]
[1754676393924,1.2912,4048.5,4048.0,3.0]
[1754676394121,1.2912,4048.4,4048.1,2.47029337]
[1754676394312,1.7468,4048.3,4048.0,3.0]
[1754676394514,1.2912,4048.3,4048.1,3.0]
[1754676394909,1.2912,4048.3,4048.2,2.47023368]
[1754676395346,1.2912,4048.8,4048.3,3.0]
[1754676395515,0.002,4050.3,4048.6,2.46998962]
[1754676395729,0.002,4050.3,4049.6,2.46934005]
[1754676395914,0.002,4050.3,4049.5,4.001]
[1754676396120,1.29120001,4050.0,4049.5,4.001]
[1754676396458,1.7468,4049.9,4049.5,4.001]
[1754676396630,1.7468,4049.8,4049.5,4.001]
[1754676396816,1e-08,4050.0,4049.5,4.001]
[1754676396817,1.7468,4049.7,4049.5,4.001]
[1754676397018,1.2912,4049.7,4049.6,3.0]
[1754676397344,1e-08,4050.0,4049.6,3.0]
[1754676397548,1e-08,4050.0,4049.9,2.46919677]
[1754676398043,1e-08,4050.0,4049.8,5.46920678]
[1754676398245,1e-08,4050.0,4049.8,3.0]
[1754676398414,1e-08,4050.0,4049.9,9.46719677]
[1754676399057,1e-08,4050.0,4049.9,9.90689677]
[1754676399248,1e-08,4050.0,4049.9,10.01719677]
[1754676399447,1e-08,4050.0,4049.9,10.53019677]
[1754676399754,1e-08,4050.0,4049.9,3.0]
[1754676399935,1.74680001,4050.0,4049.9,3.0]
[1754676400327,1e-08,4050.0,4049.9,9.59039677]
[1754676400960,1e-08,4050.0,4049.9,9.58839677]
[1754676401869,1.29120001,4050.0,4049.9,7.1192]